fUSD/lending_fUSD_20260507
["ID","MTS","AMOUNT","RATE_DAILY","PERIOD"]
[421780082,1778142665000,-271.15,0.0004188,120]
[421780091,1778142665000,-173892.0933163,0.000419,30]
[421780080,1778142665000,-250.0,0.00041876,111]
[421780065,1778142665000,-25439.04,0.000418,10]
[421780079,1778142665000,-432.46971453,0.00041875,60]
[421780102,1778142665000,-153.16213814,0.000419,120]
[421780059,1778142665000,-287.10257002,0.00041789,2]
[421780060,1778142665000,-287.10257002,0.0004179,2]
[421780061,1778142665000,-287.10257002,0.0004179,2]
[421780058,1778142665000,-287.10257002,0.00041789,2]
[421780062,1778142665000,-287.10257002,0.0004179,2]
[421780068,1778142665000,-332591.67,0.000418,10]
[421780063,1778142665000,-471.257,0.0004179,120]
[421780064,1778142665000,-25843.36104945,0.000418,60]
[421780067,1778142665000,-27949.25,0.000418,10]
[421780070,1778142665000,-250000.0,0.000418,30]
[421780066,1778142665000,-11550.12,0.000418,10]
[421780071,1778142665000,-5005.65480192,0.000418,30]
[421780069,1778142665000,-4015.77743648,0.000418,14]
[421780072,1778142665000,-532.5,0.000418,30]
[421780075,1778142665000,-271.14,0.00041804,120]
[421780076,1778142665000,-250.0,0.00041829,120]
[421780074,1778142665000,-903.0,0.000418,15]
[421780077,1778142665000,-150.0,0.00041834,2]
[421780073,1778142665000,-10000.0,0.000418,120]
[421780078,1778142665000,-10797.97541973,0.0004186,120]
[421780081,1778142665000,-25000.0,0.00041879,60]
[421780104,1778142665000,-153.16213814,0.000419,120]
[421780140,1778142665000,-200.99645,0.00041998,120]
[421780107,1778142665000,-158.23715076,0.00041917,120]
[421780134,1778142665000,-3999.999999,0.0004199,30]
[421780132,1778142665000,-500.0,0.00041984,93]
[421780129,1778142665000,-250.0,0.00041973,120]
[421780138,1778142665000,-919.79186239,0.00041998,120]
[421780136,1778142665000,-100348.33562918,0.0004199,60]
[421780137,1778142665000,-13007.76662656,0.0004199,60]
[421780139,1778142665000,-200.99645,0.00041998,120]
[421780133,1778142665000,-500.0,0.00041989,60]
[421780135,1778142665000,-488.00397762,0.0004199,60]
[421780141,1778142665000,-200.99645,0.00041998,120]
[421780143,1778142665000,-200.99645,0.00041998,120]
[421780145,1778142665000,-9211.34798985,0.00041998,30]
[421780148,1778142665000,-159.02136524,0.00041998,30]
[421780150,1778142665000,-1555.5,0.00041998,30]
[421780144,1778142665000,-151.0,0.00041998,30]
[421780146,1778142665000,-500.0,0.00041998,30]
[421780147,1778142665000,-500.0,0.00041998,30]
[421780149,1778142665000,-500.0,0.00041998,30]
[421780152,1778142665000,-150.0,0.00041999,2]
[421780153,1778142665000,-1148.61238259,0.00041999,30]
[421780103,1778142665000,-153.16213814,0.000419,120]
[421780131,1778142665000,-500.0,0.00041983,93]
[421780130,1778142665000,-271.15,0.0004198,120]
[421780142,1778142665000,-200.99645,0.00041998,120]
[421780126,1778142665000,-250.0,0.00041973,120]
[421780151,1778142665000,-220.47217622,0.00041998,30]
[421780106,1778142665000,-250.0,0.00041909,120]
[421780108,1778142665000,-150.0,0.00041917,120]
[421780109,1778142665000,-434.88524354,0.00041925,120]
[421780117,1778142665000,-5000.0,0.0004195,90]
[421780110,1778142665000,-1000.0,0.0004195,120]
[421780111,1778142665000,-5000.0,0.0004195,90]
[421780113,1778142665000,-5000.0,0.0004195,90]
[421780114,1778142665000,-5000.0,0.0004195,90]
[421780115,1778142665000,-5000.0,0.0004195,90]
[421780112,1778142665000,-5000.0,0.0004195,90]
[421780123,1778142665000,-5000.0,0.0004195,90]
[421780118,1778142665000,-5000.0,0.0004195,90]
[421780120,1778142665000,-5000.0,0.0004195,90]
[421780121,1778142665000,-5000.0,0.0004195,90]
[421780119,1778142665000,-5000.0,0.0004195,90]
[421780122,1778142665000,-5000.0,0.0004195,90]
[421780128,1778142665000,-250.0,0.00041973,120]
[421780127,1778142665000,-250.0,0.00041973,120]
[421780125,1778142665000,-250.0,0.00041973,120]
[421780124,1778142665000,-476.38467793,0.0004197,14]
[421780116,1778142665000,-5000.0,0.0004195,90]
[421780193,1778142666000,-196.59114265,0.00041999,45]
[421780179,1778142666000,-500.0,0.00041999,120]
[421780188,1778142666000,-500.0,0.00041999,90]
[421780192,1778142666000,-1500.0,0.00041999,30]
[421780203,1778142666000,-1000.0,0.00042,120]
[421780184,1778142666000,-151.0,0.00041999,120]
[421780187,1778142666000,-500.0,0.00041999,54]
[421780183,1778142666000,-151.0,0.00041999,90]
[421780186,1778142666000,-500.0,0.00041999,45]
[421780189,1778142666000,-500.0,0.00041999,120]
[421780194,1778142666000,-203.86501493,0.00041999,54]
[421780185,1778142666000,-500.0,0.00041999,30]
[421780196,1778142666000,-219.23011724,0.00041999,120]
[421780207,1778142666000,-3300.0,0.00042,120]
[421780197,1778142666000,-50000.0,0.00042,57]
[421780198,1778142666000,-4658.71156571,0.00042,120]
[421780200,1778142666000,-20100.0,0.00042,120]
[421780199,1778142666000,-1002.0,0.00042,5]
[421780202,1778142666000,-1000.0,0.00042,120]
[421780201,1778142666000,-1000.0,0.00042,120]
[421780204,1778142666000,-200.0,0.00042,30]
[421780211,1778142666000,-14179.0181479,0.00042,2]
[421780205,1778142666000,-3953.30430625,0.00042,120]
[421780206,1778142666000,-1956.0,0.00042,60]
[421780210,1778142666000,-30165.06041021,0.00042,3]
[421780182,1778142666000,-151.0,0.00041999,54]
[421780195,1778142666000,-211.40802048,0.00041999,90]
[421780180,1778142666000,-151.0,0.00041999,30]
[421780157,1778142666000,-7681.20591386,0.00041999,30]
[421780191,1778142666000,-275.27821901,0.00041999,30]
[421780154,1778142666000,-500.0,0.00041999,30]
[421780156,1778142666000,-529.62674718,0.00041999,30]
[421780155,1778142666000,-500.0,0.00041999,30]
[421780165,1778142666000,-151.0,0.00041999,54]
[421780209,1778142666000,-5859.80441254,0.00042,7]
[421780158,1778142666000,-151.0,0.00041999,30]
[421780163,1778142666000,-500.0,0.00041999,45]
[421780160,1778142666000,-500.0,0.00041999,45]
[421780161,1778142666000,-151.0,0.00041999,45]
[421780164,1778142666000,-546.84435742,0.00041999,54]
[421780162,1778142666000,-7965.41053268,0.00041999,45]
[421780159,1778142666000,-1191.11104075,0.00041999,45]
[421780190,1778142666000,-189.57680101,0.00041999,30]
[421780168,1778142666000,-500.0,0.00041999,54]
[421780167,1778142666000,-500.0,0.00041999,54]
[421780166,1778142666000,-8260.13072239,0.00041999,54]
[421780178,1778142666000,-500.0,0.00041999,120]
[421780174,1778142666000,-341.05486201,0.00041999,30]
[421780173,1778142666000,-500.0,0.00041999,90]
[421780171,1778142666000,-691.39774486,0.00041999,30]
[421780170,1778142666000,-151.0,0.00041999,90]
[421780172,1778142666000,-500.0,0.00041999,90]
[421780169,1778142666000,-8565.75555911,0.00041999,90]
[421780175,1778142666000,-151.0,0.00041999,120]
[421780176,1778142666000,-637.97435496,0.00041999,45]
[421780181,1778142666000,-151.0,0.00041999,45]
[421780177,1778142666000,-8882.6885148,0.00041999,120]
[421780213,1778142666000,-971.15852387,0.00042,120]
[421780208,1778142666000,-15000.0,0.00042,30]
[421780212,1778142666000,-3819.48820206,0.00042,120]
[421780246,1778142666000,-25000.0,0.00042,120]
[421780247,1778142666000,-500.0,0.00042,45]
[421780249,1778142666000,-500.0,0.00042,45]
[421780250,1778142666000,-168.26817813,0.00042,120]
[421780248,1778142666000,-500.0,0.00042,45]
[421780257,1778142666000,-151.0,0.00042,120]
[421780253,1778142666000,-242.032627,0.00042,120]
[421780254,1778142666000,-151.0,0.00042,120]
[421780256,1778142666000,-151.0,0.00042,120]
[421780261,1778142666000,-402.263914,0.00042,7]
[421780260,1778142666000,-3105.26575475,0.00042,30]
[421780258,1778142666000,-151.0,0.00042,120]
[421780252,1778142666000,-204.422666,0.00042,120]
[421780255,1778142666000,-151.0,0.00042,120]
[421780259,1778142666000,-155.306855,0.00042,120]
[421780266,1778142666000,-402.263914,0.00042,7]
[421780264,1778142666000,-402.263914,0.00042,7]
[421780262,1778142666000,-402.263914,0.00042,7]
[421780267,1778142666000,-402.263914,0.00042,7]
[421780272,1778142666000,-3639.140122,0.00042,120]
[421780263,1778142666000,-402.263914,0.00042,7]
[421780265,1778142666000,-402.263914,0.00042,7]
[421780269,1778142666000,-225.380214,0.00042,120]
[421780268,1778142666000,-402.263914,0.00042,7]
[421780270,1778142666000,-218.159897,0.00042,120]
[421780214,1778142666000,-1000000.0,0.00042,120]
[421780271,1778142666000,-218.159897,0.00042,120]
[421780245,1778142666000,-174.83075955,0.00042,14]
[421780244,1778142666000,-4174.81272884,0.00042,120]
[421780251,1778142666000,-10000.0,0.00042,120]
[421780243,1778142666000,-5136.02853969,0.00042,120]
[421780215,1778142666000,-1006645.03,0.00042,120]
[421780240,1778142666000,-20000.0,0.00042,120]
[421780218,1778142666000,-9443.27026721,0.00042,90]
[421780217,1778142666000,-1241506.84,0.00042,120]
[421780220,1778142666000,-25116.1101816,0.00042,30]
[421780219,1778142666000,-603.22191571,0.00042,120]
[421780226,1778142666000,-928.9907203,0.00042,120]
[421780221,1778142666000,-2168.0,0.00042,120]
[421780224,1778142666000,-3637.6095588,0.00042,120]
[421780222,1778142666000,-570.4316324,0.00042,60]
[421780223,1778142666000,-132358.23226421,0.00042,120]
[421780225,1778142666000,-895.43864775,0.00042,120]
[421780238,1778142666000,-90182.58742885,0.00042,7]
[421780228,1778142666000,-162.5045,0.00042,120]
[421780216,1778142666000,-1303754.81,0.00042,120]
[421780241,1778142666000,-5436.78,0.00042,7]
[421780227,1778142666000,-1281452.82,0.00042,120]
[421780239,1778142666000,-150.0,0.00042,4]
[421780235,1778142666000,-25326.47208239,0.00042,2]
[421780236,1778142666000,-50000.0,0.00042,120]
[421780237,1778142666000,-5000.0,0.00042,120]
[421780234,1778142666000,-6474.0,0.00042,61]
[421780233,1778142666000,-17778.78774484,0.00042,120]
[421780231,1778142666000,-2047.78273999,0.00042,30]
[421780229,1778142666000,-751.5321061,0.00042,120]
[421780230,1778142666000,-3067.96432842,0.00042,120]
[421780232,1778142666000,-165.30699944,0.00042,120]
[421780242,1778142666000,-168.0,0.00042,120]
[421780317,1778142667000,-50000.0,0.00042,120]
[421780310,1778142667000,-161.817855,0.00042,120]
[421780323,1778142667000,-590.008365,0.00042,120]
[421780322,1778142667000,-50000.0,0.00042,120]
[421780312,1778142667000,-161.817855,0.00042,120]
[421780302,1778142667000,-648.210097,0.00042,120]
[421780311,1778142667000,-161.817855,0.00042,120]
[421780305,1778142667000,-161.817855,0.00042,120]
[421780306,1778142667000,-161.817855,0.00042,120]
[421780313,1778142667000,-50000.0,0.00042,120]
[421780307,1778142667000,-161.817855,0.00042,120]
[421780308,1778142667000,-161.817855,0.00042,120]
[421780321,1778142667000,-151.0,0.00042,120]
[421780315,1778142667000,-151.0,0.00042,120]
[421780324,1778142667000,-590.008365,0.00042,120]
[421780319,1778142667000,-151.0,0.00042,120]
[421780320,1778142667000,-151.0,0.00042,120]
[421780316,1778142667000,-290.73172,0.00042,120]
[421780314,1778142667000,-151.0,0.00042,120]
[421780325,1778142667000,-590.008365,0.00042,120]
[421780333,1778142667000,-257.163956,0.00042,60]
[421780332,1778142667000,-590.008365,0.00042,120]
[421780336,1778142667000,-257.163956,0.00042,60]
[421780327,1778142667000,-590.008365,0.00042,120]
[421780334,1778142667000,-257.163956,0.00042,60]
[421780335,1778142667000,-257.163956,0.00042,60]
[421780326,1778142667000,-590.008365,0.00042,120]
[421780331,1778142667000,-257.163956,0.00042,60]
[421780318,1778142667000,-151.0,0.00042,120]
[421780300,1778142667000,-648.210097,0.00042,120]
[421780274,1778142667000,-218.159897,0.00042,120]
[421780304,1778142667000,-648.210097,0.00042,120]
[421780329,1778142667000,-590.008365,0.00042,120]
[421780273,1778142667000,-3639.140122,0.00042,120]
[421780276,1778142667000,-3639.140122,0.00042,120]
[421780280,1778142667000,-3639.140122,0.00042,120]
[421780285,1778142667000,-3639.140122,0.00042,120]
[421780282,1778142667000,-218.159897,0.00042,120]
[421780281,1778142667000,-3639.140122,0.00042,120]
[421780279,1778142667000,-218.159897,0.00042,120]
[421780275,1778142667000,-218.159897,0.00042,120]
[421780284,1778142667000,-3639.140122,0.00042,120]
[421780278,1778142667000,-218.159897,0.00042,120]
[421780283,1778142667000,-218.159897,0.00042,120]
[421780286,1778142667000,-155.695815,0.00042,120]
[421780301,1778142667000,-648.210097,0.00042,120]
[421780288,1778142667000,-151.0,0.00042,120]
[421780290,1778142667000,-151.0,0.00042,120]
[421780296,1778142667000,-50000.0,0.00042,120]
[421780293,1778142667000,-151.0,0.00042,120]
[421780297,1778142667000,-648.210097,0.00042,120]
[421780294,1778142667000,-151.0,0.00042,120]
[421780287,1778142667000,-151.0,0.00042,120]
[421780295,1778142667000,-217.657377,0.00042,120]
[421780291,1778142667000,-151.0,0.00042,120]
[421780292,1778142667000,-151.0,0.00042,120]
[421780299,1778142667000,-648.210097,0.00042,120]
[421780309,1778142667000,-161.817855,0.00042,120]
[421780298,1778142667000,-648.210097,0.00042,120]
[421780303,1778142667000,-648.210097,0.00042,120]
[421780289,1778142667000,-151.0,0.00042,120]
[421780328,1778142667000,-590.008365,0.00042,120]
[421780277,1778142667000,-3639.140122,0.00042,120]
[421780338,1778142667000,-257.163956,0.00042,60]
[421780364,1778142667000,-824.239094,0.00042,120]
[421780371,1778142667000,-824.239094,0.00042,120]
[421780375,1778142667000,-151.0,0.00042,120]
[421780372,1778142667000,-824.239094,0.00042,120]
[421780368,1778142667000,-824.239094,0.00042,120]
[421780373,1778142667000,-50000.0,0.00042,120]
[421780378,1778142667000,-151.0,0.00042,120]
[421780377,1778142667000,-151.0,0.00042,120]
[421780380,1778142667000,-151.0,0.00042,120]
[421780388,1778142667000,-518.233601,0.00042,120]
[421780379,1778142667000,-151.0,0.00042,120]
[421780382,1778142667000,-518.233601,0.00042,120]
[421780385,1778142667000,-518.233601,0.00042,120]
[421780365,1778142667000,-288.555855,0.00042,3]
[421780383,1778142667000,-518.233601,0.00042,120]
[421780384,1778142667000,-518.233601,0.00042,120]
[421780387,1778142667000,-518.233601,0.00042,120]
[421780386,1778142667000,-518.233601,0.00042,120]
[421780389,1778142667000,-518.233601,0.00042,120]
[421780391,1778142667000,-151.0,0.00042,120]
[421780390,1778142667000,-151.0,0.00042,120]
[421780393,1778142667000,-151.0,0.00042,120]
[421780394,1778142667000,-218.079618,0.00042,120]
[421780396,1778142667000,-151.0,0.00042,120]
[421780397,1778142667000,-50000.0,0.00042,120]
[421780395,1778142667000,-151.0,0.00042,120]
[421780398,1778142667000,-303.69519978,0.00042,120]
[421780330,1778142667000,-257.163956,0.00042,60]
[421780381,1778142667000,-266.611358,0.00042,120]
[421780370,1778142667000,-824.239094,0.00042,120]
[421780392,1778142667000,-151.0,0.00042,120]
[421780366,1778142667000,-824.239094,0.00042,120]
[421780374,1778142667000,-151.0,0.00042,120]
[421780348,1778142667000,-50000.0,0.00042,120]
[421780349,1778142667000,-151.0,0.00042,120]
[421780339,1778142667000,-50000.0,0.00042,120]
[421780340,1778142667000,-355.716114,0.00042,120]
[421780342,1778142667000,-355.716114,0.00042,120]
[421780341,1778142667000,-355.716114,0.00042,120]
[421780343,1778142667000,-355.716114,0.00042,120]
[421780347,1778142667000,-355.716114,0.00042,120]
[421780346,1778142667000,-355.716114,0.00042,120]
[421780344,1778142667000,-355.716114,0.00042,120]
[421780345,1778142667000,-355.716114,0.00042,120]
[421780351,1778142667000,-504.525662,0.00042,120]
[421780362,1778142667000,-151.0,0.00042,3]
[421780337,1778142667000,-257.163956,0.00042,60]
[421780350,1778142667000,-151.0,0.00042,120]
[421780361,1778142667000,-151.0,0.00042,3]
[421780369,1778142667000,-824.239094,0.00042,120]
[421780376,1778142667000,-151.0,0.00042,120]
[421780367,1778142667000,-824.239094,0.00042,120]
[421780354,1778142667000,-504.525662,0.00042,120]
[421780355,1778142667000,-504.525662,0.00042,120]
[421780363,1778142667000,-151.0,0.00042,3]
[421780353,1778142667000,-504.525662,0.00042,120]
[421780352,1778142667000,-504.525662,0.00042,120]
[421780360,1778142667000,-151.0,0.00042,3]
[421780359,1778142667000,-151.0,0.00042,3]
[421780357,1778142667000,-504.525662,0.00042,120]
[421780358,1778142667000,-504.525662,0.00042,120]
[421780356,1778142667000,-504.525662,0.00042,120]
[421780424,1778142668000,-210.0,0.000422,120]
[421780432,1778142668000,-194.09,0.00042247,120]
[421780434,1778142668000,-5000.0,0.00042255,15]
[421780428,1778142668000,-271.14,0.00042204,120]
[421780431,1778142668000,-210.0,0.00042247,120]
[421780430,1778142668000,-267.34070216,0.00042222,2]
[421780429,1778142668000,-20000.00000099,0.0004222,120]
[421780433,1778142668000,-180.0,0.0004225,120]
[421780426,1778142668000,-217.66576756,0.000422,90]
[421780427,1778142668000,-214.3643879,0.00042203,120]
[421780436,1778142668000,-5000.0,0.00042255,30]
[421780440,1778142668000,-271.15,0.0004228,120]
[421780445,1778142668000,-637.75870055,0.000423,30]
[421780437,1778142668000,-10000.0,0.00042255,30]
[421780443,1778142668000,-26775.0,0.00042298,120]
[421780441,1778142668000,-9495.19350086,0.00042298,120]
[421780446,1778142668000,-16428.77670198,0.000423,120]
[421780444,1778142668000,-154.0,0.000423,120]
[421780442,1778142668000,-27225.0,0.00042298,120]
[421780438,1778142668000,-310.0,0.00042256,95]
[421780435,1778142668000,-10000.0,0.00042255,15]
[421780447,1778142668000,-314.23415961,0.000423,120]
[421780439,1778142668000,-161.96,0.00042259,120]
[421780425,1778142668000,-405.8911,0.000422,90]
[421780406,1778142668000,-4482.33,0.00042074,2]
[421780419,1778142668000,-782.2,0.00042192,120]
[421780449,1778142668000,-287148.0,0.000423,60]
[421780400,1778142668000,-514.0,0.00042,120]
[421780399,1778142668000,-500.0,0.00042,120]
[421780401,1778142668000,-18000.0,0.00042,120]
[421780403,1778142668000,-271.14,0.00042004,120]
[421780404,1778142668000,-1383.34011487,0.0004201,2]
[421780402,1778142668000,-150.0,0.00042001,2]
[421780405,1778142668000,-9072.93146653,0.0004205,2]
[421780409,1778142668000,-50031.07641932,0.000421,7]
[421780410,1778142668000,-772.14280941,0.000421,120]
[421780407,1778142668000,-271.15,0.0004208,120]
[421780408,1778142668000,-250.0,0.00042082,120]
[421780411,1778142668000,-154.91,0.000421,120]
[421780413,1778142668000,-271.14,0.00042104,120]
[421780423,1778142668000,-5714.31565123,0.000422,2]
[421780414,1778142668000,-803.17,0.00042107,120]
[421780421,1778142668000,-32122.41899674,0.000422,2]
[421780418,1778142668000,-271.15,0.0004218,120]
[421780415,1778142668000,-5000.000001,0.0004215,120]
[421780417,1778142668000,-1000.0,0.00042174,120]
[421780422,1778142668000,-252.6395,0.000422,90]
[421780416,1778142668000,-157.94118008,0.0004216,2]
[421780412,1778142668000,-10000.0,0.000421,120]
[421780420,1778142668000,-7677.7,0.00042192,120]
[421780458,1778142668000,-50000.0,0.00042316,62]
[421780480,1778142668000,-500.0,0.00042316,120]
[421780450,1778142668000,-271.14,0.00042304,120]
[421780479,1778142668000,-500.0,0.00042316,120]
[421780478,1778142668000,-500.0,0.00042316,120]
[421780483,1778142668000,-500.0,0.00042316,120]
[421780482,1778142668000,-510.1427282,0.00042316,120]
[421780484,1778142668000,-500.0,0.00042316,120]
[421780493,1778142668000,-500.0,0.00042316,120]
[421780486,1778142668000,-500.0,0.00042316,120]
[421780490,1778142668000,-500.0,0.00042316,120]
[421780489,1778142668000,-500.0,0.00042316,120]
[421780485,1778142668000,-500.0,0.00042316,120]
[421780491,1778142668000,-500.0,0.00042316,120]
[421780488,1778142668000,-500.0,0.00042316,120]
[421780492,1778142668000,-500.0,0.00042316,120]
[421780487,1778142668000,-500.0,0.00042316,120]
[421780495,1778142668000,-500.0,0.00042316,120]
[421780494,1778142668000,-500.0,0.00042316,120]
[421780496,1778142668000,-500.0,0.00042316,120]
[421780497,1778142668000,-500.0,0.00042316,120]
[421780498,1778142668000,-500.0,0.00042316,120]
[421780501,1778142668000,-500.0,0.00042316,120]
[421780499,1778142668000,-500.0,0.00042316,120]
[421780502,1778142668000,-3657887.06216332,0.00042317,30]
[421780500,1778142668000,-594.31850962,0.00042316,120]
[421780477,1778142668000,-500.0,0.00042316,120]
[421780448,1778142668000,-500.0,0.000423,120]
[421780481,1778142668000,-500.0,0.00042316,120]
[421780475,1778142668000,-500.0,0.00042316,120]
[421780451,1778142668000,-50000.0,0.00042316,55]
[421780455,1778142668000,-50000.0,0.00042316,59]
[421780456,1778142668000,-50000.0,0.00042316,60]
[421780454,1778142668000,-50000.0,0.00042316,58]
[421780452,1778142668000,-50000.0,0.00042316,56]
[421780457,1778142668000,-50000.0,0.00042316,61]
[421780453,1778142668000,-50000.0,0.00042316,57]
[421780460,1778142668000,-50000.0,0.00042316,64]
[421780459,1778142668000,-50000.0,0.00042316,63]
[421780468,1778142668000,-500.0,0.00042316,120]
[421780463,1778142668000,-500.0,0.00042316,120]
[421780476,1778142668000,-500.0,0.00042316,120]
[421780466,1778142668000,-500.0,0.00042316,120]
[421780464,1778142668000,-500.0,0.00042316,120]
[421780467,1778142668000,-500.0,0.00042316,120]
[421780461,1778142668000,-50000.0,0.00042316,65]
[421780469,1778142668000,-500.0,0.00042316,120]
[421780462,1778142668000,-528.65333831,0.00042316,120]
[421780465,1778142668000,-500.0,0.00042316,120]
[421780472,1778142668000,-500.0,0.00042316,120]
[421780471,1778142668000,-500.0,0.00042316,120]
[421780474,1778142668000,-500.0,0.00042316,120]
[421780473,1778142668000,-500.0,0.00042316,120]
[421780470,1778142668000,-500.0,0.00042316,120]
[421780503,1778142669000,-24.72746281,0.00018806,2]
[421780505,1778142669000,-1682293.05969614,0.00042317,30]
[421780504,1778142669000,-3512.27253719,0.00018806,2]
[421780508,1778142669000,-1012.5,0.00014288,2]
[421780507,1778142669000,-307.93039979,0.00014288,2]
[421780506,1778142669000,-229.64973802,0.00014288,2]
[421780511,1778142670000,654.01,0.0002709,120]
[421780510,1778142670000,150.0,0.000301,120]
[421780509,1778142670000,238.633287,0.00022369,120]
[421780515,1778142671000,2723.28,0.00030137,120]
[421780514,1778142671000,392.41,0.00025585,120]
[421780513,1778142671000,392.41,0.00025585,120]
[421780512,1778142671000,654.01,0.0002709,120]
[421780516,1778142672000,2723.28,0.00030137,120]
[421780518,1778142691000,171.999999,0.000166,120]
[421780519,1778142700000,1000.0,0.00022,30]
[421780520,1778142701000,1000.0,0.0002,120]
[421780521,1778142720000,150.0,0.000301,120]
[421780522,1778142721000,223.23,0.0002709,120]
[421780523,1778142738000,970.34,0.0002,30]
[421780525,1778142739000,150.0,0.000152,120]
[421780524,1778142739000,776.11,0.00022,30]
[421780527,1778142763000,1000.0,0.0002,120]
[421780526,1778142763000,1000.0,0.00022,30]
[421780532,1778142840000,675.62,0.0002,30]
[421780533,1778142841000,509.32,0.00022,30]
[421780536,1778142918000,217.381147,0.000294,120]
[421780537,1778142928000,150.0,0.000152,120]
[421780541,1778143116000,150.0,0.000152,120]
[421780556,1778143305000,150.0,0.000152,120]
[421780561,1778143378000,159.5,0.000301,120]
[421780569,1778143493000,150.0,0.000152,120]
[421780570,1778143605000,636.05,0.00030137,120]
[421780571,1778143679000,254.98,0.000152,120]
[421780579,1778143831000,-319.0,0.0001395,2]
[421780574,1778143831000,-2000.0,0.00013746,2]
[421780575,1778143831000,-329.49494965,0.00013778,2]
[421780576,1778143831000,-250.0,0.00013809,2]
[421780577,1778143831000,-2500.0,0.00013873,2]
[421780581,1778143831000,-2500.0,0.00013951,2]
[421780580,1778143831000,-2500.0,0.00013951,2]
[421780584,1778143831000,-8023.2107,0.00014088,2]
[421780582,1778143831000,-2500.0,0.00013951,2]
[421780583,1778143831000,-250.0,0.00014,2]
[421780578,1778143831000,-250.0,0.00013914,2]
[421780586,1778143831000,-1053.57677235,0.000141,2]
[421780587,1778143831000,-1097.76672908,0.000141,2]
[421780585,1778143831000,-1137.53047342,0.000141,2]
[421780590,1778143832000,-999.99,0.000141,2]
[421780591,1778143832000,-873.13,0.000141,2]
[421780588,1778143832000,-1074.62447005,0.000141,2]
[421780592,1778143832000,-299.99,0.000141,2]
[421780594,1778143832000,-11046.55,0.000141,2]
[421780596,1778143832000,-3401.60442289,0.000141,2]
[421780589,1778143832000,-1082.7501708,0.000141,2]
[421780605,1778143838000,-418.18,0.000141,2]
[421780682,1778143843000,-2000.0,0.00014288,2]
[421780690,1778143843000,-395.0,0.00014765,2]
[421780687,1778143843000,-395.0,0.00014741,2]
[421780689,1778143843000,-264.60535752,0.00014757,2]
[421780688,1778143843000,-395.0,0.00014743,2]
[421780683,1778143843000,-586.77567015,0.00014487,2]
[421780692,1778143843000,-395.0,0.0001482,2]
[421780685,1778143843000,-586.77567015,0.0001467,2]
[421780684,1778143843000,-586.77567015,0.0001459,2]
[421780681,1778143843000,-50212.9345,0.00014188,2]
[421780691,1778143843000,-395.0,0.00014776,2]
[421780671,1778143843000,-519.82,0.000141,2]
[421780679,1778143843000,-165.64,0.00014121,2]
[421780673,1778143843000,-907.72,0.000141,2]
[421780678,1778143843000,-9999.99,0.000141,2]
[421780677,1778143843000,-3316.28,0.000141,2]
[421780676,1778143843000,-7636.29,0.000141,2]
[421780670,1778143843000,-150.99,0.000141,2]